{"text_format":"1","workbook":"xlsx","n_sheets":4,"sheets":["FULL","Konversi","Intesif","Reguler"],"not_rendered":{"charts":0,"images":0,"macros":1,"external_links":0,"defined_names":1,"comments":0,"pivot_tables":0},"unopened":[],"bounds":{"document_bytes":16777216,"sheet_cells":100000,"rows_first":2000,"rows_last":500,"rows_between":2000,"halvings":0,"cell_chars":16384,"cell_head_chars":4096},"cells_cut":0,"cells_raw":0,"read":"whole","date_system":"1900"}

{"sheet":"FULL","index":0,"n_rows":50,"n_cols":18,"rows_kept":50,"cut":false,"hidden":false,"merged":[[1,0,1,16],[2,0,2,16],[3,0,3,16]]}
[]
["DATABASE MAHASISWA"]
["SEKOLAH TINGGI"]
["TAHUN AKADEMIK 2011 - 2012"]
[]
["NO.","NIMKO","NIM","NAMA MAHASISWA","TEMPAT LAHIR","TANGGAL LAHIR","JENIS KELAMIN","PRODI","KONS.","TA.","PEND. TERAKHIR","TAHUN IJAZAH","ALAMAT","NO. TELP.","ORANG TUA","TGL. MASUK","KETERANGAN","KODNR"]
[91,null,null,"Nur Jana","Jakarta","1982-06-01","Perempuan","PAI","PAI",2011,"MA",2009,"Jl. Cililitan Besar Gg. Ikhlas Rt. 01/03 No. 11 Kramat Jati Jakarta Timur 13640","021 - 8087 0556 / 0838 7626 6280","Muhammad Yusuf","2013-09-16","Intesif","Aktif"]
[92,null,null,"Masfuha","Jakarta","1965-12-03","Perempuan","PAI","PAI",2011,"MA",1984,"Jl. Pertambangan I Rt. 08/06 Pd. Bambu","0817 6700 425","HM. Zein","2013-09-16","Intesif","Aktif"]
[93,null,null,"Sri Umiati","Nganjuk","1977-10-20","Perempuan","PAI","PAI",2011,"MAN",1997,"Jl. H. Ismail Rt. 007/05 No. 68 H. Kel. Balekambang Kramat Jati Jakarta Timur","0877 8237 6851","Mukamat","2013-09-16","Intesif","Aktif"]
[94,null,null,"Latifah","Jakarta","1968-09-15","Perempuan","PAI","PAI",2011,"SMEA",1989,"Lubang Buaya Rt. 01/07 Kec. Cipayung","021 - 6052 0616 / 0852 8042 1599","Lamin","2013-09-16","Intesif","Aktif"]
[95,null,null,"Tri Mutmainah","Kembumen","1976-10-14","Perempuan","PAI","PAI",2011,"SMA",1994,"Jl. Kramat III Rt. 006/010 No. 80 Lubang Buaya Jakarta Timur","0852 8099 6573","Mutakim","2013-09-16","Intesif","Aktif"]
[96,null,null,"Nurbaiti","Jakarta","1977-01-10","Perempuan","PAI","PAI",2011,"SLTA",1995,"Jl. Kebun Nanas Utara Rt. 012/007 No. 12 Kec. Cip-Cem Kec. Jatinegara Jakarta Timur","021 - 9683 1848","Moh. Nur","2013-09-16","Konversi","Aktif"]
[97,null,null,"Muchidin","Jakarta","1980-08-03","Laki-laki","PAI","PAI",2011,"SMA",2011,"Pondok Kelapa Selatan Rt. 011/05","021 - 9103 3219","H. Marhaban","2013-09-16","Konversi","Aktif"]
[98,null,null,"Toto Suryadi","Jakarta","1965-10-31","Laki-laki","PAI","PAI",2011,"SMA",1984,"Jl. Pembina Rt. 15/05 Kel. Susukan Kec. Ciracas Jakarta Timur","0813 8226 4197 / 0856 9733 4979","Maryono","2013-09-16","Intesif","Aktif"]
[99,null,null,"Evi Kamilasari","Jakarta","1974-01-06","Perempuan","PAI","PAI",2011,"SMA",1994,"Jl. Cipinang Muara IV Rt. 002/011 No. 33 Jakarta Timur","021 - 9338 7916","Ismail","2013-09-16","Intesif","Aktif"]
[114,null,null,"Siti Awaliah","Cianjur","1991-08-21","Perempuan","PAI","PAI",2011,"LIPIA",2010,"Jl. H. Sa'abun Rt. 10/5","0896 0157 6117","Yayat Supriatna","2014-06-21","Intesif","Aktif"]
[115,null,null,"Fauzani","Rambung","1991-04-18","Laki-laki","PAI","PAI",2011,"MAN",2009,"Desa Keudeloapang Kab. Bireun Kec. Gandapura Prov. NAD","0853 1047 3518","Raziman","2014-06-21","Konversi","Aktif"]
[116,null,null,"Sahuni","Dasan Gelumpang","1991-09-03","Perempuan","PAI","PAI",2011,"MA",2011,"Dusun Dasan Gelumpang Rt. 0011 Desa Akar-akar Kec. Bayan Lombok","0878 6443 3486","Rimanti","2014-08-09","Intesif","Aktif"]
[117,null,null,"Nasrudin","Karawang","1991-01-10","Laki-laki","PAI","PAI",2011,"PAKET C",2011,"-","-","Darmin","2014-06-21","Intesif","Aktif"]
[118,null,null,"Nodianto","Trt. Megara Lw. Pasaran","1991-02-10","Laki-laki","AS","AS",2011,"SMA",2011,"Desa Lw. Sumur Kec. Lw. Sumur Kab. Aceh Tenggara Porv. NAD","0877 7018 0692","Syamsul Bahri","2014-01-11","Reguler","Aktif"]
[119,null,null,"Dompi Suhadi","Empat Balai","1988-08-07","Laki-laki","AS","AS",2011,"MAN",2009,"Dusun Pulau Emat Rt. 082/004 Desa Empat Balai Kec. Bangkinang Barat","0852 8170 8788","Ruslan","2013-09-21","Konversi","Aktif"]
[120,null,null,"M. Reza Muammar","Medan","1993-06-17","Laki-laki","AS","AS",2011,"MAN",2011,"Gg. Teratai Kenangan I Jl. Kalisari Pasar Rebo Jakarta Timur","0823 6651 5614","Misran Has","2014-01-03","Intesif","Aktif"]
[121,null,null,"Ahmad Ridho Baiquny","Jakarta","1992-09-06","Laki-laki","AS","AS",2011,"MAN",2011,"Jl. TB. Badarudin Kp. Jati 10/01 Jatinegara Kaum 13250","021 - 4752 516 / 0857 3034 4616","Irianto Waladin","2014-01-03","Intesif","Aktif"]
[122,null,null,"Yudinarto Muhamad","Gambaru","1994-07-20","Laki-laki","AS","AS",2011,"MA",2011,"Gambaru Kab. Halmahera Selatan Maluku Utara","0821 4359 1024","Muhamad Djauhar","2013-10-01","Reguler","Aktif"]
[123,null,null,"Michael Dharmawan","Palembang","1992-10-21","Laki-laki","AS","AS",2011,"SMA",2010,"Jl. Kramat Kosambi I No. 6","0856 7637 755","Dewi Nur Cahyati","2013-09-05","Intesif","Aktif"]
[124,null,null,"Arnawi Husen","Wayakuba","1990-05-16","Laki-laki","AS","AS",2011,"MA",2011,"Pondok Sukma Jaya Depok","0812 1307 7404","Husen Bonofo","2013-06-15","Intesif","Aktif"]
[125,null,null,"Khumaidullah Irfan","Brebes","1988-03-11","Laki-laki","AS","AS",2011,"SMA",2005,"Jl. Rawajati Barat II Rt. 006/004 Rawajati Pancoran","021 - 4170 5433","Siti Mu'minah","2013-06-15","Konversi","Aktif"]
[126,null,null,"Nahwa Darwi","Kukupang","1993-04-27","Laki-laki","AS","AS",2011,"MA",2011,"Pondok Sukma Jaya Depok","0813 8007 9312","Darwi M. Nur","2013-06-16","Intesif","Aktif"]
[127,null,null,"Hasan Basri","Penosan","1992-11-30","Laki-laki","AS","AS",2011,"SMA",2011,"Jl. I Gusti Ngurah Rai No. 39 B Bulak Klender Jakarta Timur 13470","0823 6061 1096","Rahman","2014-04-21","Reguler","Aktif"]
[128,null,null,"Abu Adi","Kutapanjang","1992-06-08","Laki-laki","AS","AS",2011,"PAKET C",2010,"Jakarta Timur Ps. Rebo Kalisari Gang Teratai Rt. 04/02","0852 1728 9598 / 0852 1687 8082","M. Esa","2013-02-04","Intesif","Aktif"]
[129,null,null,"Usamah Al Aqib","Kendal","1993-02-08","Laki-laki","AS","AS",2011,"SMA",2011,"Jl. Kenangan I Gg. Teratai Rt. 04/002 Kalisari Ps. Rebo Jakarta Timur","0857 7014 4006","Abdul Hamid","2014-07-05","Intesif","Aktif"]
[130,null,null,"Fahrurozi","Pandeglang","1991-11-24","Laki-laki","AS","AS",2011,"SMK",2011,"Kp. Sidomukti Ds. Sidomukti Kec. Sukaresmi 04/02 Pandeglang","0857 8222 2006","H. Anden","2014-08-07","Intesif","Aktif"]
[131,null,null,"Syahrul Ramadhan","Kubucubadak","1993-03-12","Laki-laki","AS","AS",2011,"MAN",2011,"-","0823 9291 6831 / 0852 7218 8026","Muhammad Isa","2014-06-11","Intesif","Aktif"]
[132,null,null,"Munzir Tamam","Jakarta","1990-03-06","Laki-laki","KPI","KPI",2011,"SMK",2007,"Kp. Rawa Gelam Rt. 02/06 No. 78 Jatinegara Cakung Jaktim","0857 7484 1824","Hasbullah","2013-01-09","Reguler","Aktif"]
[133,null,null,"Ikmal M. Kiat","Suketa","1993-07-05","Laki-laki","KPI","KPI",2011,"MA",2010,"Tanjung Priuk TL. Walang Sari Raya No. 4","0852 8718 9868","Muhammad Kiat","2013-09-26","Intesif","Aktif"]
[134,null,null,"Fitri Sun Fatayati","Sri Gading","1991-05-20","Perempuan","KPI","KPI",2011,"SMA",2010,"Jl. Kertamukti Ciputat Tangerang","0823 1151 8304","M. Fatani","2013-11-23","Konversi","Aktif"]
[135,null,null,"Hardiansyah","Tepal","1991-10-07","Laki-laki","KPI","KPI",2011,"SMA",2010,"Jl. Sawo No. 11 Kukusan Beji Depok","0852 8551 7697","Sahaluddin","2013-09-14","Konversi","Aktif"]
[136,null,null,"Samsul Umam","Sengga","1992-06-15","Laki-laki","KPI","KPI",2011,"MA",2011,"Desa Sengga Baru Baluku Utara","0812 1203 7839","Jafar","2013-09-02","Konversi","Aktif"]
[137,null,null,"Isra Husen","Papaceda","1991-04-07","Laki-laki","KPI","KPI",2011,"MA",2011,"Desa Papaceda Kec. Gane Bacat maluku Utara","0812 8287 1338","Husen Raden","2013-09-02","Intesif","Aktif"]
[138,null,null,"Lutfiyusup","Gonong","1992-04-16","Laki-laki","KPI","KPI",2011,"MA",2011,"Kp. Jembatan Penggilingan Cakung","-","Yusup Umar","2013-05-11","Intesif","Aktif"]
[139,null,null,"Fahmi Habibi","Bekasi","1991-08-21","Laki-laki","KPI","KPI",2011,"SMA",2009,"Jl. Buaran II Rt. 002/013 No. 19 Klender Duren Sawit Jakarta Timur","021 - 8631 001 / 0856 1988 697","Kudratullah Arifin","2012-10-09","Reguler","Aktif"]
[140,null,null,"Syahrul Ramadhan","Kubucubadak","1993-03-12","Laki-laki","HK","AS",2011,"MAN",2011,"-","0823 9291 6831 / 0852 7218 8026","Muhammad Isa","2014-06-11","Intesif","Aktif"]
[141,null,null,"Munzir Tamam","Jakarta","1990-03-06","Laki-laki","HK","KPI",2011,"SMK",2007,"Kp. Rawa Gelam Rt. 02/06 No. 78 Jatinegara Cakung Jaktim","0857 7484 1824","Hasbullah","2013-01-09","Reguler","Aktif"]
[142,null,null,"Ikmal M. Kiat","Suketa","1993-07-05","Laki-laki","HK","KPI",2011,"MA",2010,"Tanjung Priuk TL. Walang Sari Raya No. 4","0852 8718 9868","Muhammad Kiat","2013-09-26","Intesif","Aktif"]
[143,null,null,"Fitri Sun Fatayati","Sri Gading","1991-05-20","Perempuan","HK","KPI",2011,"SMA",2010,"Jl. Kertamukti Ciputat Tangerang","0823 1151 8304","M. Fatani","2013-11-23","Konversi","Aktif"]
[144,null,null,"Hardiansyah","Tepal","1991-10-07","Laki-laki","HK1","KPI",2011,"SMA",2010,"Jl. Sawo No. 11 Kukusan Beji Depok","0852 8551 7697","Sahaluddin","2013-09-14","Konversi","Aktif"]
[145,null,null,"Samsul Umam","Sengga","1992-06-15","Laki-laki","HK1","KPI",2011,"MA",2011,"Desa Sengga Baru Baluku Utara","0812 1203 7839","Jafar","2013-09-02","Konversi","Aktif"]
[146,null,null,"Isra Husen","Papaceda","1991-04-07","Laki-laki","HK1","KPI",2011,"MA",2011,"Desa Papaceda Kec. Gane Bacat maluku Utara","0812 8287 1338","Husen Raden","2013-09-02","Intesif","Aktif"]
[147,null,null,"Lutfiyusup","Gonong","1992-04-16","Laki-laki","HK1","KPI",2011,"MA",2011,"Kp. Jembatan Penggilingan Cakung","-","Yusup Umar","2013-05-11","Intesif","Aktif"]
[148,null,null,"Fahmi Habibi","Bekasi","1991-08-21","Laki-laki","HK1","KPI",2011,"SMA",2009,"Jl. Buaran II Rt. 002/013 No. 19 Klender Duren Sawit Jakarta Timur","021 - 8631 001 / 0856 1988 697","Kudratullah Arifin","2012-10-09","Reguler","Aktif"]

{"sheet":"Konversi","index":1,"n_rows":17,"n_cols":18,"rows_kept":17,"cut":false,"hidden":false,"merged":[[1,0,1,16],[2,0,2,16],[3,0,3,16]]}
[]
["DATABASE MAHASISWA"]
["SEKOLAH TINGGI"]
["TAHUN AKADEMIK 2011 - 2012"]
[]
["NO.","NIMKO","NIM","NAMA MAHASISWA","TEMPAT LAHIR","TANGGAL LAHIR","JENIS KELAMIN","PRODI","KONS.","TA.","PEND. TERAKHIR","TAHUN IJAZAH","ALAMAT","NO. TELP.","ORANG TUA","TGL. MASUK","KETERANGAN","KODNR"]
[{"$f":"N(A6)+1","v":1},null,null,"Nurbaiti","Jakarta","1977-01-10","Perempuan","PAI","PAI",2011,"SLTA",1995,"Jl. Kebun Nanas Utara Rt. 012/007 No. 12 Kec. Cip-Cem Kec. Jatinegara Jakarta Timur","021 - 9683 1848","Moh. Nur","2013-09-16","Konversi","Aktif"]
[2,null,null,"Muchidin","Jakarta","1980-08-03","Laki-laki","PAI","PAI",2011,"SMA",2011,"Pondok Kelapa Selatan Rt. 011/05","021 - 9103 3219","H. Marhaban","2013-09-16","Konversi","Aktif"]
[3,null,null,"Fauzani","Rambung","1991-04-18","Laki-laki","PAI","PAI",2011,"MAN",2009,"Desa Keudeloapang Kab. Bireun Kec. Gandapura Prov. NAD","0853 1047 3518","Raziman","2014-06-21","Konversi","Aktif"]
[4,null,null,"Dompi Suhadi","Empat Balai","1988-08-07","Laki-laki","AS","AS",2011,"MAN",2009,"Dusun Pulau Emat Rt. 082/004 Desa Empat Balai Kec. Bangkinang Barat","0852 8170 8788","Ruslan","2013-09-21","Konversi","Aktif"]
[5,null,null,"Khumaidullah Irfan","Brebes","1988-03-11","Laki-laki","AS","AS",2011,"SMA",2005,"Jl. Rawajati Barat II Rt. 006/004 Rawajati Pancoran","021 - 4170 5433","Siti Mu'minah","2013-06-15","Konversi","Aktif"]
[6,null,null,"Fitri Sun Fatayati","Sri Gading","1991-05-20","Perempuan","KPI","KPI",2011,"SMA",2010,"Jl. Kertamukti Ciputat Tangerang","0823 1151 8304","M. Fatani","2013-11-23","Konversi","Aktif"]
[7,null,null,"Hardiansyah","Tepal","1991-10-07","Laki-laki","KPI","KPI",2011,"SMA",2010,"Jl. Sawo No. 11 Kukusan Beji Depok","0852 8551 7697","Sahaluddin","2013-09-14","Konversi","Aktif"]
[8,null,null,"Samsul Umam","Sengga","1992-06-15","Laki-laki","KPI","KPI",2011,"MA",2011,"Desa Sengga Baru Baluku Utara","0812 1203 7839","Jafar","2013-09-02","Konversi","Aktif"]
[9,null,null,"Fitri Sun Fatayati","Sri Gading","1991-05-20","Perempuan","HK","KPI",2011,"SMA",2010,"Jl. Kertamukti Ciputat Tangerang","0823 1151 8304","M. Fatani","2013-11-23","Konversi","Aktif"]
[10,null,null,"Hardiansyah","Tepal","1991-10-07","Laki-laki","HK1","KPI",2011,"SMA",2010,"Jl. Sawo No. 11 Kukusan Beji Depok","0852 8551 7697","Sahaluddin","2013-09-14","Konversi","Aktif"]
[11,null,null,"Samsul Umam","Sengga","1992-06-15","Laki-laki","HK1","KPI",2011,"MA",2011,"Desa Sengga Baru Baluku Utara","0812 1203 7839","Jafar","2013-09-02","Konversi","Aktif"]

{"sheet":"Intesif","index":2,"n_rows":32,"n_cols":18,"rows_kept":32,"cut":false,"hidden":false,"merged":[[1,0,1,16],[2,0,2,16],[3,0,3,16]]}
[]
["DATABASE MAHASISWA"]
["SEKOLAH TINGGI"]
["TAHUN AKADEMIK 2011 - 2012"]
[]
["NO.","NIMKO","NIM","NAMA MAHASISWA","TEMPAT LAHIR","TANGGAL LAHIR","JENIS KELAMIN","PRODI","KONS.","TA.","PEND. TERAKHIR","TAHUN IJAZAH","ALAMAT","NO. TELP.","ORANG TUA","TGL. MASUK","KETERANGAN","KODNR"]
[{"$f":"N(A6)+1","v":1},null,null,"Nur Jana","Jakarta","1982-06-01","Perempuan","PAI","PAI",2011,"MA",2009,"Jl. Cililitan Besar Gg. Ikhlas Rt. 01/03 No. 11 Kramat Jati Jakarta Timur 13640","021 - 8087 0556 / 0838 7626 6280","Muhammad Yusuf","2013-09-16","Intesif","Aktif"]
[2,null,null,"Masfuha","Jakarta","1965-12-03","Perempuan","PAI","PAI",2011,"MA",1984,"Jl. Pertambangan I Rt. 08/06 Pd. Bambu","0817 6700 425","HM. Zein","2013-09-16","Intesif","Aktif"]
[3,null,null,"Sri Umiati","Nganjuk","1977-10-20","Perempuan","PAI","PAI",2011,"MAN",1997,"Jl. H. Ismail Rt. 007/05 No. 68 H. Kel. Balekambang Kramat Jati Jakarta Timur","0877 8237 6851","Mukamat","2013-09-16","Intesif","Aktif"]
[4,null,null,"Latifah","Jakarta","1968-09-15","Perempuan","PAI","PAI",2011,"SMEA",1989,"Lubang Buaya Rt. 01/07 Kec. Cipayung","021 - 6052 0616 / 0852 8042 1599","Lamin","2013-09-16","Intesif","Aktif"]
[5,null,null,"Tri Mutmainah","Kembumen","1976-10-14","Perempuan","PAI","PAI",2011,"SMA",1994,"Jl. Kramat III Rt. 006/010 No. 80 Lubang Buaya Jakarta Timur","0852 8099 6573","Mutakim","2013-09-16","Intesif","Aktif"]
[6,null,null,"Toto Suryadi","Jakarta","1965-10-31","Laki-laki","PAI","PAI",2011,"SMA",1984,"Jl. Pembina Rt. 15/05 Kel. Susukan Kec. Ciracas Jakarta Timur","0813 8226 4197 / 0856 9733 4979","Maryono","2013-09-16","Intesif","Aktif"]
[7,null,null,"Evi Kamilasari","Jakarta","1974-01-06","Perempuan","PAI","PAI",2011,"SMA",1994,"Jl. Cipinang Muara IV Rt. 002/011 No. 33 Jakarta Timur","021 - 9338 7916","Ismail","2013-09-16","Intesif","Aktif"]
[8,null,null,"Siti Awaliah","Cianjur","1991-08-21","Perempuan","PAI","PAI",2011,"LIPIA",2010,"Jl. H. Sa'abun Rt. 10/5","0896 0157 6117","Yayat Supriatna","2014-06-21","Intesif","Aktif"]
[9,null,null,"Sahuni","Dasan Gelumpang","1991-09-03","Perempuan","PAI","PAI",2011,"MA",2011,"Dusun Dasan Gelumpang Rt. 0011 Desa Akar-akar Kec. Bayan Lombok","0878 6443 3486","Rimanti","2014-08-09","Intesif","Aktif"]
[10,null,null,"Nasrudin","Karawang","1991-01-10","Laki-laki","PAI","PAI",2011,"PAKET C",2011,"-","-","Darmin","2014-06-21","Intesif","Aktif"]
[11,null,null,"M. Reza Muammar","Medan","1993-06-17","Laki-laki","AS","AS",2011,"MAN",2011,"Gg. Teratai Kenangan I Jl. Kalisari Pasar Rebo Jakarta Timur","0823 6651 5614","Misran Has","2014-01-03","Intesif","Aktif"]
[12,null,null,"Ahmad Ridho Baiquny","Jakarta","1992-09-06","Laki-laki","AS","AS",2011,"MAN",2011,"Jl. TB. Badarudin Kp. Jati 10/01 Jatinegara Kaum 13250","021 - 4752 516 / 0857 3034 4616","Irianto Waladin","2014-01-03","Intesif","Aktif"]
[13,null,null,"Michael Dharmawan","Palembang","1992-10-21","Laki-laki","AS","AS",2011,"SMA",2010,"Jl. Kramat Kosambi I No. 6","0856 7637 755","Dewi Nur Cahyati","2013-09-05","Intesif","Aktif"]
[14,null,null,"Arnawi Husen","Wayakuba","1990-05-16","Laki-laki","AS","AS",2011,"MA",2011,"Pondok Sukma Jaya Depok","0812 1307 7404","Husen Bonofo","2013-06-15","Intesif","Aktif"]
[15,null,null,"Nahwa Darwi","Kukupang","1993-04-27","Laki-laki","AS","AS",2011,"MA",2011,"Pondok Sukma Jaya Depok","0813 8007 9312","Darwi M. Nur","2013-06-16","Intesif","Aktif"]
[16,null,null,"Abu Adi","Kutapanjang","1992-06-08","Laki-laki","AS","AS",2011,"PAKET C",2010,"Jakarta Timur Ps. Rebo Kalisari Gang Teratai Rt. 04/02","0852 1728 9598 / 0852 1687 8082","M. Esa","2013-02-04","Intesif","Aktif"]
[17,null,null,"Usamah Al Aqib","Kendal","1993-02-08","Laki-laki","AS","AS",2011,"SMA",2011,"Jl. Kenangan I Gg. Teratai Rt. 04/002 Kalisari Ps. Rebo Jakarta Timur","0857 7014 4006","Abdul Hamid","2014-07-05","Intesif","Aktif"]
[18,null,null,"Fahrurozi","Pandeglang","1991-11-24","Laki-laki","AS","AS",2011,"SMK",2011,"Kp. Sidomukti Ds. Sidomukti Kec. Sukaresmi 04/02 Pandeglang","0857 8222 2006","H. Anden","2014-08-07","Intesif","Aktif"]
[19,null,null,"Syahrul Ramadhan","Kubucubadak","1993-03-12","Laki-laki","AS","AS",2011,"MAN",2011,"-","0823 9291 6831 / 0852 7218 8026","Muhammad Isa","2014-06-11","Intesif","Aktif"]
[20,null,null,"Ikmal M. Kiat","Suketa","1993-07-05","Laki-laki","KPI","KPI",2011,"MA",2010,"Tanjung Priuk TL. Walang Sari Raya No. 4","0852 8718 9868","Muhammad Kiat","2013-09-26","Intesif","Aktif"]
[21,null,null,"Isra Husen","Papaceda","1991-04-07","Laki-laki","KPI","KPI",2011,"MA",2011,"Desa Papaceda Kec. Gane Bacat maluku Utara","0812 8287 1338","Husen Raden","2013-09-02","Intesif","Aktif"]
[22,null,null,"Lutfiyusup","Gonong","1992-04-16","Laki-laki","KPI","KPI",2011,"MA",2011,"Kp. Jembatan Penggilingan Cakung","-","Yusup Umar","2013-05-11","Intesif","Aktif"]
[23,null,null,"Syahrul Ramadhan","Kubucubadak","1993-03-12","Laki-laki","HK","AS",2011,"MAN",2011,"-","0823 9291 6831 / 0852 7218 8026","Muhammad Isa","2014-06-11","Intesif","Aktif"]
[24,null,null,"Ikmal M. Kiat","Suketa","1993-07-05","Laki-laki","HK","KPI",2011,"MA",2010,"Tanjung Priuk TL. Walang Sari Raya No. 4","0852 8718 9868","Muhammad Kiat","2013-09-26","Intesif","Aktif"]
[25,null,null,"Isra Husen","Papaceda","1991-04-07","Laki-laki","HK1","KPI",2011,"MA",2011,"Desa Papaceda Kec. Gane Bacat maluku Utara","0812 8287 1338","Husen Raden","2013-09-02","Intesif","Aktif"]
[26,null,null,"Lutfiyusup","Gonong","1992-04-16","Laki-laki","HK1","KPI",2011,"MA",2011,"Kp. Jembatan Penggilingan Cakung","-","Yusup Umar","2013-05-11","Intesif","Aktif"]

{"sheet":"Reguler","index":3,"n_rows":13,"n_cols":18,"rows_kept":13,"cut":false,"hidden":false,"merged":[[1,0,1,16],[2,0,2,16],[3,0,3,16]]}
[]
["DATABASE MAHASISWA"]
["SEKOLAH TINGGI"]
["TAHUN AKADEMIK 2011 - 2012"]
[]
["NO.","NIMKO","NIM","NAMA MAHASISWA","TEMPAT LAHIR","TANGGAL LAHIR","JENIS KELAMIN","PRODI","KONS.","TA.","PEND. TERAKHIR","TAHUN IJAZAH","ALAMAT","NO. TELP.","ORANG TUA","TGL. MASUK","KETERANGAN","KODNR"]
[{"$f":"N(A6)+1","v":1},null,null,"Nodianto","Trt. Megara Lw. Pasaran","1991-02-10","Laki-laki","AS","AS",2011,"SMA",2011,"Desa Lw. Sumur Kec. Lw. Sumur Kab. Aceh Tenggara Porv. NAD","0877 7018 0692","Syamsul Bahri","2014-01-11","Reguler","Aktif"]
[2,null,null,"Yudinarto Muhamad","Gambaru","1994-07-20","Laki-laki","AS","AS",2011,"MA",2011,"Gambaru Kab. Halmahera Selatan Maluku Utara","0821 4359 1024","Muhamad Djauhar","2013-10-01","Reguler","Aktif"]
[3,null,null,"Hasan Basri","Penosan","1992-11-30","Laki-laki","AS","AS",2011,"SMA",2011,"Jl. I Gusti Ngurah Rai No. 39 B Bulak Klender Jakarta Timur 13470","0823 6061 1096","Rahman","2014-04-21","Reguler","Aktif"]
[4,null,null,"Munzir Tamam","Jakarta","1990-03-06","Laki-laki","KPI","KPI",2011,"SMK",2007,"Kp. Rawa Gelam Rt. 02/06 No. 78 Jatinegara Cakung Jaktim","0857 7484 1824","Hasbullah","2013-01-09","Reguler","Aktif"]
[5,null,null,"Fahmi Habibi","Bekasi","1991-08-21","Laki-laki","KPI","KPI",2011,"SMA",2009,"Jl. Buaran II Rt. 002/013 No. 19 Klender Duren Sawit Jakarta Timur","021 - 8631 001 / 0856 1988 697","Kudratullah Arifin","2012-10-09","Reguler","Aktif"]
[6,null,null,"Munzir Tamam","Jakarta","1990-03-06","Laki-laki","HK","KPI",2011,"SMK",2007,"Kp. Rawa Gelam Rt. 02/06 No. 78 Jatinegara Cakung Jaktim","0857 7484 1824","Hasbullah","2013-01-09","Reguler","Aktif"]
[7,null,null,"Fahmi Habibi","Bekasi","1991-08-21","Laki-laki","HK1","KPI",2011,"SMA",2009,"Jl. Buaran II Rt. 002/013 No. 19 Klender Duren Sawit Jakarta Timur","021 - 8631 001 / 0856 1988 697","Kudratullah Arifin","2012-10-09","Reguler","Aktif"]